{"text_format":"1","workbook":"xlsx","n_sheets":4,"sheets":["A","B","C","E"],"not_rendered":{"charts":0,"images":1,"macros":1,"external_links":1,"defined_names":14,"comments":2,"pivot_tables":0},"unopened":[],"bounds":{"document_bytes":16777216,"sheet_cells":100000,"rows_first":2000,"rows_last":500,"rows_between":2000,"halvings":0,"cell_chars":16384,"cell_head_chars":4096},"cells_cut":0,"cells_raw":0,"read":"whole","date_system":"1900"}

{"sheet":"A","index":0,"n_rows":225,"n_cols":19,"rows_kept":225,"cut":false,"hidden":false,"merged":[[39,10,39,11],[0,15,1,18],[8,15,10,18],[9,5,9,11],[10,5,10,11],[2,15,2,18],[2,7,2,14],[3,17,3,18],[3,15,3,16],[15,6,15,7],[2,2,2,5],[5,5,5,8],[5,2,5,3],[3,2,3,3],[3,5,3,11],[9,2,9,3],[7,2,7,3],[8,2,8,3],[7,11,7,18],[5,17,5,18],[3,13,3,14],[5,13,5,14],[38,2,38,7],[6,10,6,11],[6,5,6,8],[4,11,4,12],[4,14,4,18],[5,15,5,16],[4,2,4,3],[4,5,4,7],[10,2,10,3],[13,2,15,3],[8,5,8,10],[6,17,6,18],[6,12,6,14],[7,5,7,8],[12,13,12,18],[6,15,6,16],[6,2,6,3],[13,6,13,7],[21,6,21,7],[26,5,26,7],[17,5,17,7],[14,6,14,7],[23,6,23,7],[55,10,55,14],[30,5,30,7],[16,2,25,3],[16,5,16,7],[22,6,22,7],[18,5,18,7],[27,5,27,7],[20,5,20,7],[19,5,19,7],[24,6,24,7],[25,6,25,7],[47,10,47,11],[48,10,48,11],[46,10,46,11],[30,2,34,3],[33,5,33,7],[31,5,31,7],[27,2,27,3],[26,2,26,3],[40,10,40,11],[62,7,62,9],[63,7,63,9],[63,5,63,6],[53,2,54,3],[51,6,51,7],[49,2,49,11],[50,5,50,7],[50,2,50,3],[54,6,54,14],[57,6,57,14],[41,10,41,11],[42,10,42,11],[43,10,43,11],[44,10,44,11],[61,14,61,16],[61,5,61,6],[60,16,60,17],[51,2,51,5],[52,2,52,11],[55,2,56,3],[58,6,58,14],[57,2,58,3],[53,15,58,18],[61,7,61,9],[48,2,48,3],[53,6,53,14],[45,10,45,11],[28,2,28,3],[29,2,29,3],[29,5,29,7],[35,5,35,7],[36,5,36,7],[32,5,32,7],[34,6,34,7],[28,5,28,7],[39,2,39,4],[37,5,37,7],[35,2,35,3],[36,2,37,3],[40,2,40,3],[41,2,41,3],[42,2,42,3],[43,2,43,3],[44,2,44,3],[45,2,45,3],[46,2,46,3],[47,2,47,3]]}
[]
[" ",null,null,null,null,null,null,null,null,null,null,null,null,"\n\n"]
[null,null,null,null,null,null,null,"Reiseregning",null,null,null,null,null,null,null,"Reisenummer"]
[null,null,"Etter og fornavn",null,null,null,null,null,null,null,null,null,"  Fødselsnr.",null,null,"Ansattnr"]
[null,null,"Dokumenttype",null,null,"asdf",null,null,null,null,"Nummer",null,null,"Land"]
[null,null,"Privatadresse",null,null,null,null,null,null,null,"Postnr.",null,"Poststed",null,null,"Klient "]
[null,null,"Stilling",null,null,null,null,null,null,null,"Bankkontonummer",null,"dsaf",null,null,"Firmakode"]
[null,null,"Virksomhet",null,null,null,null,null,null,null,"Avd./tj.sted"]
[null,null,"Regulativ",null,null,null,null,null,null,null,null,"Land (By)",null,"  Dato","  Kl.","De feltene som er merket med lys grønn og fortekster i kursiv, skal bare fylles ut dersom du / reisende ikke er registrert i lønnssystemet fra før."]
[null,null,"Reisemål",null,null,null,null,null,null,null,null,null,"Reisestart"]
[null,null,"Reiseårsak",null,null,null,null,null,null,null,null,null,"Hjemkomst"]
[null,null,"Reiseutlegg / godtgjøringer",null,null,null,null,null,null,null,"Antall","Sats","Beløp","Kost.sted","K-elem.4","K-elem.5","K-elem.6","K-elem.7","(Konto)"]
[null,null,null,null,null,null,null,"Beløp overført  fra baksiden:  ",null,null," ---"," ---",{"$f":"IF(B!N38=0,0,B!N38)","v":0},"Generell kostnadstilordning:"]
[null,null,"Kostgodtgjøring uten overnatting, iht.sats",null,null,"Dagreise"]
[]
[]
[null,null,"Kostgodtgjøring ved overnatting, iht.sats \n\n",null,null,{"$f":"+F9","v":0}]
[null,null,null,null,null,"Hotell "]
[null,null,null,null,null,"Hyb.u/kok, Pensjonat/Brakke *"]
[null,null,null,null,null,"Hybel/Leil./Privat m/kok.*"]
[]
[null,null,null,null,null,{"$f":"+F9","v":0}]
[null,null,null,null,null,"Hotell "]
[null,null,null,null,null,"Hyb.u/kok,Pen-\nsjonat/Brakke *"]
[null,null,null,null,null,"Hybel/Leil.\n/Privat m/kok. *."]
[]
[null,null,null,null,null,"Er det overnattet i tilleggsdøgnet?"]
[]
[null,null,"Nattillegg, uleg.",null,null,"Innland",null,null,null,null,null,null,null,"Tilpasset kostnadsfordeling på enkeltposter (ved behov):"]
[null,null,"Komp. Tillegg",null,null,"Utland *"]
[null,null,"Eget skyssmiddel. Spesifiser reisen på baksiden.",null,null,"Bil (El./Hybrid/Fossil) *",null,null,null,null,{"$f":"[1]B!J16+[1]B!J18","v":0}]
[null,null,null,null,null,"Hjem-arbeid  (skattepl.) *",null,null,null,null,{"$f":"[1]B!J17","v":0}]
[null,null,null,null,null,"Passasjertillegg, se merknadsfelt"]
[null,null,null,null,null,"Passasjertillegg, se merknadsfelt",null,null,null,null,null,null,null,"   "]
[null,null,null,null,null,"Annet kj,tøy"]
[null,null,"Andre godtgj.*"]
[]
[]
[null,null,"Måltidstrekk: Kryss av for mottatte måltider:",null,null,null,null,null,null,null,null,"Del-sum:  "]
[null,null,"Dato/dag:",null,null,"Frokost","Lunsj","Middag",null,null,"   Oppgi land: "]
[]
[]
[]
[]
[]
[]
[]
[]
[]
[null,null,"    Sum reiseoppgjør   ."]
[null,null,"Annet trekk"]
[null,null,"Reiseforskudd utbet.sted"]
[null,null," Totalsum (Trekkpliktige ytelser er merket med *) ."]
[null,null,"Reisendes underskrift",null,"Dato","Dato","Jeg samtykker i at ev. skyldig beløp kan trekkes i lønn",null,null,null,null,null,null,null,null,"  Satser beregnes ikke. \n  Det er de satsene og beregningene som \n  ligger i lønnssystemet som vil bli brukt ved \n  utbetalingen av reiseregningen. \n  Forventet utbetalingsbeløp kan bli mindre \n  pga. forskuddstrekk."]
[]
[null,null,"Kontrollør",null,"Dato","Dato","Sign.",null,null,null,"Er virksomheten omfattet av nettoføringsordningen?"]
[]
[null,null,"Budsjett- disponering",null,"Dato","Dato","Sign."]
[]
[null,null,null,null,null,null,null,null,null,null,null,null,null,null,null,null,null,"2023-02-01"]
[]
[null,null,null,"LAND",null,"ULEGITIMERT ",null,null,null,null,null,null,null,null,"ANDRE FREMKOMSTMIDLER",null,null,null,"REGULATIV"]
[null,null,null,null,null,"KOSTGODTGJØRELSE"]
[null,null,null,"Norge",null,"MED OVERNATTING",null,null,null,null,null,null,null,null,"Motorsykkel (MC)> 125 ccm, Moped-bil",null,null,null,"Dagsreise  "]
[null,null,null,"Afghanistan",null,null,null,null,null,null,null,null,null,null,"Snøscooter og ATV",null,null,null,"Hotell "]
[null,null,null,"Afrika (øvrige land)",null,"5-9 timer",null,"8 - 12 timer",null,null,null,"SAP","xx",null,"Båt med motor",null,null,null,"Hybel u/kok,Pensjonat/Brakke  "]
[null,null,null,"Albania",null,"9-12 timer",null,"over 12 timer",null,null,null,null,null,null,"Moped, MC =<125 ccm og andre motoriserte fremkomstmidler",null,null,null,"Hybel/Leil/Privat m/kok  "]
[null,null,null,"Algerie",null,"over 12 timer",null,null,null,null,null,null,null,null,null,null,null,null,">28d Hotell  "]
[null,null,null,"Amerika (øvrige land)",null,null,null,null,null,null,null,null,null,null,"Skogs- og anleggsveier",null,null,null,">28d Hybel u/kok,Pensj/Brakke "]
[null,null,null,"Angola",null,null,null,null,null,null,null,null,null,null,"Tilhenger etc.",null,null,null,">28d Hybel/Leil/Privat m/kok  "]
[null,null,null,"Argentina",null,null,null,null,null,null,null,null,null,null,null,null,null,null,"Trekkfri Hyb.u/kok,Pensj/Brak  "]
[null,null,null,"Armenia",null,null,null,null,null,null,null,null,null,null,null,null,null,null,"Trekkfri Hyb/Leil/Priv m/kok  "]
[null,null,null,"Aserbajdsjan",null,null,null,null,null,null,null,null,null,null,null,null,null,null,"Feltavtale  "]
[null,null,null,"Asia (øvrige land)"]
[null,null,null,"Australia"]
[null,null,null,"Bahamas"]
[null,null,null,"Bahrain"]
[null,null,null,"Bangladesh"]
[null,null,null,"Barbados"]
[null,null,null,"Belgia"]
[null,null,null,"Benin"]
[null,null,null,"Bolivia"]
[null,null,null,"Bosnia-Hercegovina"]
[null,null,null,"Botswana"]
[null,null,null,"Brasil"]
[null,null,null,"Brasil,Rio"]
[null,null,null,"BruneiDarussal"]
[null,null,null,"Bulgaria"]
[null,null,null,"Burundi"]
[null,null,null,"Canada"]
[null,null,null,"Chile"]
[null,null,null,"Colombia"]
[null,null,null,"CostaRica"]
[null,null,null,"Cuba"]
[null,null,null,"Danmark"]
[null,null,null,"Demokratisk rep.Kongo"]
[null,null,null,"Egypt"]
[null,null,null,"Elfenbenskysten"]
[null,null,null,"ElSalvador"]
[null,null,null,"Eritrea"]
[null,null,null,"Estland"]
[null,null,null,"Eswatini"]
[null,null,null,"Etiopia"]
[null,null,null,"Filippinene"]
[null,null,null,"Finland"]
[null,null,null,"ForenteArabiskeEmirater"]
[null,null,null,"Frankrike"]
[null,null,null,"Frankrike,Paris"]
[null,null,null,"Gabon"]
[null,null,null,"Georgia"]
[null,null,null,"Ghana"]
[null,null,null,"Guatemala"]
[null,null,null,"Guyana"]
[null,null,null,"Hellas"]
[null,null,null,"Honduras"]
[null,null,null,"Hviterussland"]
[null,null,null,"India"]
[null,null,null,"Indonesia"]
[null,null,null,"Iran"]
[null,null,null,"Irland"]
[null,null,null,"Island"]
[null,null,null,"Israel"]
[null,null,null,"Italia"]
[null,null,null,"Jamaica"]
[null,null,null,"Japan"]
[null,null,null,"Jordan"]
[null,null,null,"Kambodsja"]
[null,null,null,"Kamerun"]
[null,null,null,"Kasakhstan"]
[null,null,null,"Kenya"]
[null,null,null,"Kina"]
[null,null,null,"Kina,Hongkong"]
[null,null,null,"Kina,Shanghai"]
[null,null,null,"Kongo"]
[null,null,null,"Kosovo"]
[null,null,null,"Kroatia"]
[null,null,null,"Kuwait"]
[null,null,null,"Kypros"]
[null,null,null,"Laos"]
[null,null,null,"Latvia"]
[null,null,null,"Lesotho"]
[null,null,null,"Libanon"]
[null,null,null,"Liechtenstein"]
[null,null,null,"Litauen"]
[null,null,null,"Luxemburg"]
[null,null,null,"Madagaskar"]
[null,null,null,"Malawi"]
[null,null,null,"Malaysia"]
[null,null,null,"Maldivene"]
[null,null,null,"Malta"]
[null,null,null,"Marokko"]
[null,null,null,"Mauritius"]
[null,null,null,"Mexico"]
[null,null,null,"Moldova"]
[null,null,null,"Monaco"]
[null,null,null,"Montenegro"]
[null,null,null,"Mosambik"]
[null,null,null,"Myanmar"]
[null,null,null,"Namibia"]
[null,null,null,"Nederland"]
[null,null,null,"NewZealand"]
[null,null,null,"Nicaragua"]
[null,null,null,"Nigeria"]
[null,null,null,"Nord-Korea"]
[null,null,null,"Nord-Makedonia"]
[null,null,null,"Oman"]
[null,null,null,"Oseania (øvrige land)"]
[null,null,null,"Pakistan"]
[null,null,null,"Palestina"]
[null,null,null,"Panama"]
[null,null,null,"PapuaNy-Guinea"]
[null,null,null,"Paraguay"]
[null,null,null,"Peru"]
[null,null,null,"Polen"]
[null,null,null,"Portugal"]
[null,null,null,"PuertoRico"]
[null,null,null,"Qatar"]
[null,null,null,"Romania"]
[null,null,null,"Russland"]
[null,null,null,"Russland,Moskva"]
[null,null,null,"Russland,St.Petersburg"]
[null,null,null,"Saudi-Arabia"]
[null,null,null,"Serbia"]
[null,null,null,"Seychellene"]
[null,null,null,"Singapore"]
[null,null,null,"Slovakia"]
[null,null,null,"Slovenia"]
[null,null,null,"Spania"]
[null,null,null,"SriLanka"]
[null,null,null,"Storbritannia"]
[null,null,null,"Storbritannia,London"]
[null,null,null,"Sudan"]
[null,null,null,"Surinam"]
[null,null,null,"Sveits"]
[null,null,null,"Sveits,Geneve"]
[null,null,null,"Sveits,Zurich"]
[null,null,null,"Sverige"]
[null,null,null,"Sør-Afrika"]
[null,null,null,"Sør-Korea"]
[null,null,null,"Sør-Sudan"]
[null,null,null,"Taiwan"]
[null,null,null,"Tanzania"]
[null,null,null,"Thailand"]
[null,null,null,"Togo"]
[null,null,null,"Tsjekkia"]
[null,null,null,"Tyrkia"]
[null,null,null,"Tyrkia,Istanbul"]
[null,null,null,"Tyskland"]
[null,null,null,"Tyskland,Berlin"]
[null,null,null,"Ukraina"]
[null,null,null,"Ungarn"]
[null,null,null,"Uruguay"]
[null,null,null,"USA"]
[null,null,null,"USA,NewYork"]
[null,null,null,"USA,SanFrancisco"]
[null,null,null,"USA,WashingtonD.C."]
[null,null,null,"Usbekistan"]
[null,null,null,"Venezuela"]
[null,null,null,"Vietnam"]
[null,null,null,"Yemen"]
[null,null,null,"Zambia"]
[null,null,null,"Zimbabwe"]
[null,null,null,"Østerrike"]
[null,null,null,"Østerrike,Wien"]
[null,null,null,"Øst-Timor"]

{"sheet":"B","index":1,"n_rows":65,"n_cols":14,"rows_kept":65,"cut":false,"hidden":false,"merged":[[5,3,5,4],[6,3,6,4],[13,3,13,4],[14,3,14,4],[18,1,18,9],[15,6,15,8],[15,3,15,4],[51,1,58,13],[50,1,50,13],[45,1,45,10],[47,1,47,10],[39,1,39,9],[46,1,46,10],[4,3,4,4],[48,1,48,10],[39,10,39,12],[1,10,1,13],[2,10,2,12],[17,6,17,8],[16,3,16,5],[7,3,7,4],[8,3,8,4],[10,3,10,4],[16,6,16,8],[18,10,18,12],[15,1,16,1],[9,3,9,4],[11,3,11,4],[12,3,12,4]]}
[]
[null,"   Reisespesifikasjon",null,null,null,null,null,null,null,null,"   Reiseutlegg"]
[null,null,"   Fra",null,null,"    Til",null,null," Skyssmiddel",null,"    Fremmed valuta"]
[null,"Dato","Klokkeslett","             Sted",null,"Sted","Klokkeslett","Type","Kjøre- form","Km","Valuta","Beløp i valuta","Kurs","Beløp"]
[null,null,null,null,null,null,null,null,null,null,null,null,null,{"$f":"IF(AND(L5<>0,M5<>0),L5*M5,L5)","v":0}]
[null,null,null,null,null,null,null,null,null,null,null,null,null,{"$f":"IF(AND(L6<>0,M6<>0),L6*M6,L6)","v":0}]
[null,null,null,null,null,null,null,null,null,null,null,null,null,0]
[null,null,null,null,null,null,null,null,null,null,null,null,null,0]
[null,null,null,null,null,null,null,null,null,null,null,null,null,0]
[null,null,null,null,null,null,null,null,null,null,null,null,null,0]
[null,null,null,null,null,null,null,null,null,null,null,null,null,0]
[null,null,null,null,null,null,null,null,null,null,null,null,null,0]
[null,null,null,null,null,null,null,null,null,null,null,null,null,0]
[null,null,null,null,null,null,null,null,null,null,null,null,null,0]
[null,null,null,null,null,null,null,null,null,null,null,null,null,0]
[null,"Hjemmel for bruk av bil"," Dato",null,null,null,"Sum km ",null,null,{"$f":"I62+I65","v":0},null,null,"Delsum",{"$f":"IF(SUM(N5:N15)<>0,SUM(N5:N15),0)","v":0}]
[null,null," Gitt av",null,null,null,"Sum km hjem-arbeid",null,null,{"$f":"I64","v":0}]
[null,null,"   "]
[null,"   Utlegg til overnatting, billetter, bompenger m.m.",null,null,null,null,null,null,null,null,"  Fremmed valuta"]
[null,"Dato","  Spesifikasjon",null,null,null,null,null,null,"Papir- kvittering","Valuta","Beløp i valuta","Kurs","Beløp"]
[null,null,null,null,null,null,null,null,null,null,null,null,null,{"$f":"IF(AND(L21<>0,M21<>0),L21*M21,L21)","v":0}]
[]
[null,null,null,null,null,null,null,null,null,null,null,null,null,{"$f":"IF(AND(L23<>0,M23<>0),L23*M23,L23)","v":0}]
[null,null,null,null,null,null,null,null,null,null,null,null,null,0]
[null,null,null,null,null,null,null,null,null,null,null,null,null,0]
[null,null,null,null,null,null,null,null,null,null,null,null,null,0]
[null,null,null,null,null,null,null,null,null,null,null,null,null,0]
[null,null,null,null,null,null,null,null,null,null,null,null,null,0]
[null,null,null,null,null,null,null,null,null,null,null,null,null,0]
[]
[]
[]
[null,null,null,null,null,null,null,null,null,null,null,null,null,0]
[null,null,null,null,null,null,null,null,null,null,null,null,null,0]
[null,null,null,null,null,null,null,null,null,null,null,null,null,0]
[null,"   ","   ",null,null,null,null,null,null,null,null,null,"Delsum",{"$f":"IF(SUM(N21:N35)<>0,SUM(N21:N35),0)","v":0}]
[]
[null,null,null,null,"  Reiseutlegg - overføres automatisk til forsiden",null,null,null,null,null,null,null,"Sum",{"$f":"IF(OR(N16<>0,N36<>0),N16+N36,0)","v":0}]
[]
[null,"  Utlegg som er betalt av arbeidsgiver",null,null,null,null,null,null,null,null,"  Fremmed valuta"]
[null,"  Dato","  Spesifikasjon",null,null,null,null,null,null,null,"Valuta","Beløp i valuta","  Kurs","Beløp"]
[null,null,null,null,null,null,null,null,null,null,null,null,null,{"$f":"IF(AND(L42<>0,M42<>0),L42*M42,L42)","v":0}]
[null,null,null,null,null,null,null,null,null,null,null,null,null,{"$f":"IF(AND(L43<>0,M43<>0),L43*M43,L43)","v":0}]
[null,null,null,null,null,null,null,null,null,null,null,null,null,{"$f":"IF(AND(L44<>0,M44<>0),L44*M44,L44)","v":0}]
[]
[null,"   Overnatting (Oppgi navn på, og sted for hotell, pensjonat eller annet (ikke privat).)"]
[null,"    ellers blir beløpet som overstiger Skattedir. forskuddssatser for overnatting med kokemuligheter, skattepliktig."]
[]
[]
[]
[null,"   Merknader (Navn på passasjerer må oppgis her.)"]
[]
[]
[]
[]
[]
[]
[]
[]
[null,null,null,null,null,null,null,null,null,null,null,null,null,{"$f":"A!R60","v":"2023-02-01"}]
[null,"Tidsintervall",null,"JA/NEI",null,null,null,"Summering av kjøretype"]
[null,null,null,null,null,null,null,null,{"$f":"SUMIF($I$5:$I$15,\"\",$J$5:$J$15)","v":0}]
[null,"5-9 timer",null,"Ja",null,null,null,null,{"$f":"SUMIF($I$5:$I$15,H63,$J$5:$J$15)","v":0}]
[null,"9-12 timer",null,"Nei",null,null,null,"X",{"$f":"SUMIF($I$5:$I$15,H64,$J$5:$J$15)","v":0}]
[null,"over 12 timer",null,null,null,null,null,"U",{"$f":"SUMIF($I$5:$I$15,H65,$J$5:$J$15)","v":0}]

{"sheet":"C","index":2,"n_rows":0,"n_cols":0,"rows_kept":0,"cut":false,"hidden":false,"merged":[]}

{"sheet":"E","index":3,"n_rows":28,"n_cols":11,"rows_kept":28,"cut":false,"hidden":true,"merged":[[18,0,18,2],[12,0,12,2],[16,0,16,2],[11,0,11,2],[13,0,13,2],[15,0,15,2],[17,0,17,2],[14,0,14,2],[7,0,7,2],[8,0,8,2],[9,0,9,2],[10,0,10,2],[0,0,0,2],[1,0,1,2],[3,0,3,2],[6,0,6,2],[4,0,4,2],[2,0,2,2],[5,0,5,2]]}
["Trekk for kost",null,null,"Frokost","Lunsj","Middag","Sum",null,"Sats",null,"Veiledning"]
["Uten overnatting 6-12",null,null,{"$f":"IF(A!F41<>0,#REF!*A!F41,\"\")","v":""},{"$f":"IF(A!G41<>0,#REF!*A!G41,\"\")","v":""},{"$f":"IF(A!H41<>0,#REF!*A!H41,\"\")","v":""},{"$f":"SUM(D2:F2)","v":0},{"$f":"IF(B!J5=\"\",\"\",+B!J5)","v":""},null,null,"fyll ut hvite felt. "]
["Uten overnatting over 12 t",null,null,{"$f":"IF(A!F42<>0,#REF!*A!F42,\"\")","v":""},{"$f":"IF(A!G42<>0,#REF!*A!G42,\"\")","v":""},{"$f":"IF(A!H42<>0,#REF!*A!H42,\"\")","v":""},{"$f":"SUM(D3:F3)","v":0},{"$f":"IF(B!J6=\"\",\"\",+B!J6)","v":""},null,null,"fyll ut hvite felt. "]
["Hotell innland",null,null,{"$f":"IF(A!F43<>0,#REF!*#REF!*A!F43,\"\")","v":""},{"$f":"IF(A!G43<>0,#REF!*#REF!*A!G43,\"\")","v":""},{"$f":"IF(A!H43<>0,#REF!*#REF!*A!H43,\"\")","v":""},0,{"$f":"IF(B!J6=\"\",\"\",+B!J6)","v":""},null,null,"lagre lokalt"]
["Pensjonat",null,null,{"$f":"IF(A!F44<>0,#REF!*#REF!*A!F44,\"\")","v":""},{"$f":"IF(A!G44<>0,#REF!*#REF!*A!G44,\"\")","v":""},{"$f":"IF(A!H44<>0,#REF!*#REF!*A!H44,\"\")","v":""},{"$f":"SUM(D5:F5)","v":0},{"$f":"IF(B!J5=\"\",\"\",+B!J5)","v":""}]
["Hybel/brakke/privat",null,null,{"$f":"IF(A!F45<>0,#REF!*#REF!*A!F45,\"\")","v":""},{"$f":"IF(A!G45<>0,#REF!*#REF!*A!G45,\"\")","v":""},{"$f":"IF(A!H45<>0,#REF!*#REF!*A!H45,\"\")","v":""},{"$f":"SUM(D6:F6)","v":0},{"$f":"IF(B!J6=\"\",\"\",+B!J6)","v":""}]
["Hotell utland",null,null,{"$f":"IF(A!F46<>0,A!F46*E!I7*#REF!,\"\")","v":""},{"$f":"IF(A!G46<>0,A!G46*I7*#REF!,\"\")","v":""},{"$f":"IF(A!H46<>0,I7*A!H46*#REF!,\"\")","v":""},0,{"$f":"IF(B!J7=\"\",\"\",+B!J7)","v":""},{"$f":"VLOOKUP(A!K46,#REF!,3,FALSE)","v":{"$error":"#REF!"}},null,"hvordan håndtere årsskifte - nullstille akkumulator"]
["Hotell utland",null,null,{"$f":"IF(A!F47<>0,A!F47*E!I8*#REF!,\"\")","v":""},{"$f":"IF(A!G47<>0,A!G47*I8*#REF!,\"\")","v":""},{"$f":"IF(A!H47<>0,I8*A!H47*#REF!,\"\")","v":""},0,{"$f":"IF(B!J8=\"\",\"\",+B!J8)","v":""},{"$f":"VLOOKUP(A!K47,#REF!,3,FALSE)","v":{"$error":"#REF!"}}]
["Pensjonat",null,null,{"$f":"IF(A!F48<>0,A!F48*E!I9*#REF!,\"\")","v":""},{"$f":"IF(A!G48<>0,A!G48*I9*#REF!,\"\")","v":""},{"$f":"IF(A!H48<>0,I9*A!H48*#REF!,\"\")","v":""},0,{"$f":"IF(B!J9=\"\",\"\",+B!J9)","v":""},{"$f":"VLOOKUP(A!K48,#REF!,3,FALSE)","v":{"$error":"#REF!"}}]
["Hybel/brakke/privat",null,null,{"$f":"IF(A!F49<>0,A!F49*E!I10*#REF!,\"\")","v":""},{"$f":"IF(A!G49<>0,A!G49*I10*#REF!,\"\")","v":""},{"$f":"IF(A!H49<>0,I10*A!H49*#REF!,\"\")","v":""},0,{"$f":"IF(B!J10=\"\",\"\",+B!J10)","v":""},{"$f":"VLOOKUP(A!K49,#REF!,3,FALSE)","v":{"$error":"#REF!"}}]
["Nattillegg",null,null,{"$f":"IF(A!#REF!<>0,A!#REF!*E!I11*#REF!,\"\")","v":{"$error":"#REF!"}},null,null,{"$error":"#REF!"},null,{"$f":"VLOOKUP(A!#REF!,#REF!,3,FALSE)","v":{"$error":"#REF!"}}]
["Kostgodtgjøring uten overnatting, 6-12 t.",null,null,1,null,"Her summeres kilometer hjem / arbeid."]
["Kostgodtgjøring uten overnatting, > 12 t.",null,null,1,null,{"$f":"SUMIF(B!I5:J15,\"X\",B!J5:J15)","v":0},null,null,null,"Satser for trekk av kost ved opphold på pensjonat"]
["Kostgodtgjøring med overnatting,  1",null,null,8,null,null,null,null,null,"Frokost",29]
["Kostgodtgjørimg med overnatting, 2",null,null,1,null,"Tromsø",null,null,null,"Lunsj",117]
["Nattillegg, 1",null,null,1,null,"høyere km.sats",null,null,null,"Middag",147]
["Nattillegg, 2",null,null,1,null,{"$f":"IF(A!M9=\"Tromsø\",1,\"\")","v":""},null,null,null,"Satser for trekk av kost ved opphold på hybel/brakke/privat"]
["Trekk for kost utland, 1",null,null,1,null,null,null,null,null,"Frokost",19]
["Trekk for kost utland, 1",null,null,1,null,null,null,null,null,"Lunsj",76]
[null,null,null,null,null,null,null,null,null,"Middag",95]
[]
["Passnummer"]
["Social security number"]
["Tax identification number",null,null,null,null,null,{"$f":"ROUNDDOWN(G9,0)","v":0}]
["VAT identification number"]
[]
["ja"]
["nei"]